bitfinex/quotes_SOLUSD_20250829
["timestamp","ask_amount","ask_price","bid_price","bid_amount"]
[1756457994217,0.06,207.18,207.12,19.61243668]
[1756457994446,0.06,207.18,207.14,19.61243668]
[1756457994618,0.06,207.18,207.13,0.69]
[1756457994819,0.06,207.18,207.14,20.30243668]
[1756457995221,0.06,207.18,207.16,19.61243668]
[1756457995747,0.06,207.18,207.17,0.69]
[1756457995948,0.06,207.18,207.17,20.30243668]
[1756457996120,0.06,207.18,207.17,0.69]
[1756457997537,0.06,207.18,207.17,20.30243668]
[1756457998131,0.06,207.18,207.17,0.69]
[1756457998445,0.06,207.18,207.17,20.30243668]
[1756457999551,0.06,207.18,207.17,0.69]
[1756458000248,19.67243668,207.18,207.11,0.69]
[1756458000422,19.61243668,207.15,207.07,0.7]
[1756458000623,19.61243668,207.12,207.06,4.85940641]
[1756458000835,19.61243668,207.13,207.07,19.61243668]
[1756458001024,0.68,207.16,207.07,19.61243668]
[1756458001224,19.61243668,207.12,207.06,0.73]
[1756458001451,19.61243668,207.11,207.06,0.73]
[1756458001654,24.44079051,207.11,207.06,0.73]
[1756458001880,24.44079051,207.11,207.06,0.03]
[1756458002180,26.0,207.17,207.08,19.61243668]
[1756458002345,19.61243668,207.16,207.09,19.61243668]
[1756458002549,19.61243668,207.1,207.06,0.03]
[1756458003169,30.06019837,207.18,207.06,0.03]
[1756458003170,4.06019837,207.18,207.08,19.61243668]
[1756458003381,19.61243668,207.15,207.09,0.7]
[1756458003560,19.61243668,207.15,207.1,4.82858522]
[1756458003755,4.82705072,207.17,207.1,5.52858522]
[1756458003960,19.61243668,207.14,207.1,5.52858522]
[1756458004158,19.61243668,207.14,207.1,0.7]
[1756458004566,19.61243668,207.15,207.1,0.7]
[1756458005149,19.61243668,207.13,207.07,24.44172146]
[1756458005351,0.06,207.18,207.11,19.61243668]
[1756458005568,19.61243668,207.15,207.09,19.61243668]
[1756458005964,19.61243668,207.16,207.08,0.7]
[1756458006390,19.61243668,207.16,207.09,19.61243668]
[1756458006711,19.61243668,207.15,207.09,19.61243668]
[1756458006889,19.61243668,207.11,207.06,0.03]
[1756458007069,0.68,207.14,207.06,0.03]
[1756458007070,24.44172146,207.07,207.06,0.03]
[1756458007275,25.12172146,207.07,207.06,0.03]
[1756458007900,19.61243668,207.07,207.06,0.03]
[1756458008390,20.29243668,207.07,207.06,0.03]
[1756458009593,25.12172146,207.07,207.06,0.03]
[1756458010380,25.12172146,207.07,207.05,0.03]
[1756458010696,45.61243668,207.04,207.03,0.03]
[1756458010897,45.61243668,207.04,207.02,1e-08]
[1756458011196,45.61243668,207.04,207.01,0.03]
[1756458011197,4.83045116,207.02,207.01,0.03]
[1756458011382,24.44288784,207.02,207.01,0.03]
[1756458011573,25.12288784,207.02,207.01,0.03]
[1756458012068,0.68,207.02,207.01,0.03]
[1756458012271,46.29243668,207.02,207.01,0.03]
[1756458013303,51.12288784,207.02,207.01,0.03]
[1756458014578,26.0,207.02,207.01,0.03]
[1756458014779,45.61243668,207.02,207.01,0.03]
[1756458015299,50.44288784,207.02,207.01,0.03]
[1756458015490,50.41102488,207.02,207.01,0.03]
[1756458015697,25.96813704,207.02,207.01,0.03]
[1756458015883,45.58057372,207.02,207.01,0.03]
[1756458016690,50.41102488,207.02,207.01,0.03]
[1756458016894,30.7985882,207.02,207.01,0.03]
[1756458017099,19.61243668,207.02,207.01,0.03]
[1756458017310,41.18,207.06,207.01,0.73]
[1756458017790,19.61243668,207.05,207.01,0.73]
[1756458017990,4.82858522,207.1,207.02,20.31243668]
[1756458018194,19.61243668,207.08,207.02,20.31243668]
[1756458018394,19.61243668,207.09,207.03,20.31243668]
[1756458018590,41.18,207.1,207.01,0.03]
[1756458018789,19.61243668,207.06,207.01,0.03]
[1756458018995,45.61243668,207.07,207.01,0.03]
[1756458019188,45.61243668,207.07,207.02,0.7]
[1756458019492,26.0,207.07,207.03,0.7]
[1756458019691,45.61243668,207.07,207.03,0.7]
[1756458019899,19.61243668,207.04,207.01,0.03]
[1756458020214,41.86,207.06,207.01,0.03]
[1756458020386,19.61243668,207.02,207.01,0.03]
[1756458020711,26.0,207.02,207.01,0.03]
[1756458020914,45.61243668,207.02,207.01,0.03]
[1756458021206,26.0,207.02,207.01,0.03]
[1756458021392,5.50992574,207.05,207.01,0.03]
[1756458021592,19.61243668,207.02,207.01,0.03]
[1756458022002,46.29243668,207.02,207.01,0.03]
[1756458022201,46.26057372,207.02,207.01,0.03]
[1756458023104,86.76057372,207.02,207.01,0.03]
[1756458023310,86.79243668,207.02,207.01,0.03]
[1756458023511,91.62288784,207.02,207.01,0.03]
[1756458023903,0.68,207.08,207.01,0.03]
[1756458024110,19.61243668,207.05,207.01,0.03]
[1756458024987,0.06,207.11,207.02,0.7]
[1756458025312,41.18,207.1,207.02,0.7]
[1756458025810,41.18,207.1,207.05,19.61243668]
[1756458026001,19.67243668,207.11,207.06,0.7]
[1756458026195,19.67243668,207.11,207.07,0.7]
[1756458026392,0.06,207.11,207.07,0.7]
[1756458026591,0.06,207.11,207.08,0.7]
[1756458026792,0.06,207.11,207.02,13.59559401]
[1756458026793,19.61243668,207.09,207.03,0.7]
[1756458027003,19.61243668,207.07,207.03,0.7]
[1756458027214,19.61243668,207.08,207.03,0.7]
[1756458027518,19.61243668,207.07,207.04,0.7]
[1756458027711,19.61243668,207.07,207.02,4.83045116]
[1756458027712,0.06,207.11,207.06,19.61243668]
[1756458027914,0.06,207.11,207.08,19.61243668]
[1756458028114,0.06,207.11,207.09,20.31243668]
[1756458028319,0.06,207.11,207.1,19.61243668]
[1756458028616,0.06,207.11,207.1,20.31243668]
[1756458028999,0.06,207.11,207.1,25.1410219]
[1756458029193,0.06,207.11,207.1,38.73661591]
[1756458029737,1e-08,207.11,207.1,19.12417923]
[1756458030018,0.06,207.14,207.1,50.80807897]
[1756458030220,0.06,207.16,207.13,19.61243668]
[1756458030528,0.06,207.16,207.15,19.61243668]
[1756458030709,0.06,207.16,207.15,33.20803069]
[1756458030918,0.06,207.16,207.15,33.87803069]
[1756458031104,0.06,207.16,207.15,25.10985642]
[1756458031304,0.06,207.16,207.15,5.49741974]
[1756458031508,0.06,207.16,207.15,0.67]
[1756458032016,0.06,207.16,207.12,19.61243668]
[1756458032218,0.06,207.16,207.15,19.61243668]
[1756458032418,0.06,207.16,207.15,20.28243668]
[1756458032728,0.06,207.16,207.12,0.67]
[1756458032898,19.61243668,207.13,207.08,0.67]
[1756458033098,19.61243668,207.1,207.04,20.28243668]
[1756458033298,0.7,207.13,207.01,20.31243668]
[1756458033299,19.61243668,207.08,207.01,20.31243668]
[1756458033498,19.61243668,207.11,207.05,19.61243668]
[1756458033698,19.61243668,207.12,207.06,19.61243668]
[1756458033916,19.61243668,207.07,207.02,0.67]
[1756458034118,19.61243668,207.07,207.01,4.86060078]
[1756458034304,19.61243668,207.05,207.01,0.03]
[1756458034499,19.61243668,207.03,207.01,0.03]
[1756458034705,41.16,207.09,207.01,0.7]
[1756458034923,0.7,207.14,207.04,19.61243668]
[1756458035223,19.61243668,207.1,207.04,25.11234685]
[1756458035531,19.61243668,207.11,207.05,19.61243668]
[1756458035820,19.61243668,207.1,207.01,0.03]
[1756458036027,19.61243668,207.04,207.01,0.03]
[1756458036402,19.61243668,207.02,207.01,0.03]
[1756458036818,20.31243668,207.02,207.01,0.03]
[1756458037125,25.14288784,207.02,207.01,0.03]
[1756458037318,5.53045116,207.02,207.01,0.03]
[1756458037628,25.14288784,207.02,207.01,0.03]
[1756458037834,44.75532452,207.02,207.0,0.03]
[1756458038040,26.0,206.99,206.96,0.03]
[1756458038333,26.0,206.95,206.82,20.28243668]
[1756458038511,45.61243668,206.95,206.82,20.28243668]
[1756458038825,46.31243668,206.95,206.85,19.61243668]
[1756458039026,87.47243668,206.95,206.84,20.28243668]
[1756458039325,92.30452172,206.95,206.84,5.50465014]
[1756458039521,92.30452172,206.95,206.84,0.67]
[1756458039718,72.69208504,206.95,206.84,25.11705607]
[1756458040024,61.49243668,206.95,206.85,19.61243668]
[1756458040232,19.61243668,206.95,206.87,0.67]
[1756458040524,60.79243668,206.95,206.87,0.67]
[1756458040714,66.32452172,206.95,206.87,0.67]
[1756458041116,65.62452172,206.95,206.87,0.67]
[1756458041319,65.62452172,206.95,206.87,4.83384079]
[1756458041320,60.79243668,206.95,206.87,4.83384079]
[1756458041514,19.61243668,206.95,206.89,0.67]
[1756458041729,19.61243668,206.96,206.89,0.67]
[1756458042019,19.61243668,206.95,206.89,20.28243668]
[1756458042405,19.61243668,206.98,206.92,19.61243668]
[1756458042627,41.18,207.0,206.94,0.7]
[1756458042828,19.61243668,206.98,206.94,0.03]
[1756458043039,19.61243668,206.95,206.94,0.03]
[1756458043339,65.62452172,206.95,206.94,0.03]
[1756458043635,66.32452172,206.95,206.94,0.03]
[1756458044422,24.44452172,206.95,206.94,0.03]
[1756458044631,19.61243668,206.97,206.94,0.03]
[1756458044933,19.61243668,206.95,206.94,0.03]
[1756458045532,19.61243668,206.96,206.94,0.03]
[1756458045736,45.61243668,206.97,206.94,0.03]
[1756458045938,19.61243668,206.96,206.94,0.03]
[1756458046316,61.49243668,206.95,206.94,0.03]
[1756458046931,26.0,206.92,206.81,19.61243668]
[1756458047114,19.61243668,206.88,206.82,0.67]
[1756458047511,19.61243668,206.88,206.82,20.28243668]
[1756458047910,24.44616298,206.88,206.82,0.67]
[1756458048122,26.0,206.85,206.82,0.67]
[1756458048935,19.61243668,206.86,206.82,0.67]
[1756458049437,19.61243668,206.86,206.83,0.67]
[1756458049643,19.61243668,206.84,206.78,20.28243668]
[1756458049814,19.61243668,206.85,206.78,20.28243668]
[1756458050120,19.61243668,206.85,206.79,0.67]
[1756458050510,41.2,206.87,206.8,0.03]
[1756458050511,19.61243668,206.84,206.8,0.03]
[1756458050714,19.61243668,206.83,206.8,0.03]
[1756458051322,19.61243668,206.81,206.8,0.03]
[1756458052131,61.51243668,206.81,206.8,0.03]
[1756458052332,61.51243668,206.81,206.77,0.03]
[1756458052333,26.0,206.78,206.77,0.03]
[1756458052524,45.61243668,206.78,206.77,0.03]
[1756458052724,46.31243668,206.78,206.77,0.03]
[1756458052927,67.2,206.78,206.77,0.03]
[1756458053130,41.9,206.78,206.77,0.03]
[1756458053329,66.34849432,206.78,206.77,0.03]
[1756458054917,26.0,206.76,206.67,0.67]
[1756458055236,19.61243668,206.68,206.63,0.67]
[1756458055425,19.61243668,206.64,206.63,0.67]
[1756458055738,19.61243668,206.64,206.58,4.84073966]
[1756458055937,19.61243668,206.63,206.58,4.84073966]
[1756458056117,19.61243668,206.62,206.58,4.84073966]
[1756458056440,41.2,206.69,206.59,0.67]
[1756458056441,19.61243668,206.61,206.59,0.67]
[1756458056829,19.61243668,206.61,206.6,4.84027105]
[1756458057030,14.55004,206.72,206.6,5.51027105]
[1756458057229,19.61243668,206.65,206.61,0.67]
[1756458057535,19.61243668,206.64,206.61,0.67]
[1756458057737,19.61243668,206.62,206.61,0.67]
[1756458057925,19.61243668,206.62,206.6,4.84027105]
[1756458058125,19.61243668,206.7,206.6,4.84027105]
[1756458058329,19.61243668,206.61,206.6,4.84027105]
[1756458058546,19.61243668,206.62,206.6,4.84027105]
[1756458058733,19.61243668,206.62,206.58,4.84073966]
[1756458058931,19.61243668,206.62,206.59,0.67]
[1756458059242,30.83866075,206.67,206.6,0.67]
[1756458059436,19.61243668,206.61,206.6,0.67]
[1756458060121,0.7,206.69,206.6,0.67]
[1756458060320,5.53827514,206.69,206.51,2.525216]
[1756458060524,5.53827514,206.69,206.56,0.7]
[1756458060525,19.61243668,206.57,206.56,0.7]
[1756458060729,19.61243668,206.57,206.51,3.225216]
[1756458060936,19.61243668,206.52,206.51,0.7]
[1756458061337,19.61243668,206.53,206.51,5.54238051]
[1756458061546,19.61243668,206.58,206.52,14.29559401]
[1756458061775,46.22727706,206.7,206.54,13.59559401]
[1756458061776,41.24,206.64,206.54,13.59559401]
[1756458062056,19.61243668,206.6,206.55,0.7]
[1756458062543,19.61243668,206.58,206.56,0.7]
[1756458062723,19.61243668,206.62,206.57,4.840974]
[1756458062921,19.61243668,206.63,206.58,0.7]
[1756458063121,14.549335,206.72,206.61,13.59559401]
[1756458063447,19.61243668,206.66,206.62,0.7]
[1756458063646,19.61243668,206.64,206.62,0.7]
[1756458063823,19.61243668,206.64,206.57,30.53900301]
[1756458063824,19.61243668,206.67,206.63,0.7]
[1756458064027,19.61243668,206.7,206.64,19.61243668]
[1756458064228,19.61243668,206.69,206.65,0.7]
[1756458064441,19.61243668,206.68,206.65,0.7]
[1756458064641,0.67,206.79,206.66,20.31243668]
[1756458064954,19.61243668,206.71,206.67,5.53863163]
[1756458065154,19.61243668,206.79,206.71,13.59559401]
[1756458065362,19.61243668,206.79,206.73,19.61243668]
[1756458065648,19.61243668,206.79,206.69,13.59559401]
[1756458065649,3.94427643,206.85,206.76,19.61243668]
[1756458065824,3.94427643,206.85,206.81,19.61243668]
[1756458066027,19.61243668,206.87,206.82,0.7]
[1756458066234,19.61243668,206.87,206.83,0.7]
[1756458066432,26.0,206.92,206.78,13.59559401]
[1756458066433,26.0,206.91,206.84,0.7]
[1756458066640,19.61243668,206.85,206.79,0.7]
[1756458066844,0.67,206.91,206.75,0.7]
[1756458066845,19.61243668,206.8,206.75,0.7]
[1756458067036,19.61243668,206.76,206.71,0.7]
[1756458067229,26.0,206.82,206.71,0.7]
[1756458067428,41.36,206.87,206.71,0.7]
[1756458067429,41.4,206.87,206.76,19.61243668]
[1756458067736,19.61243668,206.86,206.8,19.61243668]
[1756458067936,19.61243668,206.89,206.83,19.61243668]
[1756458068134,19.61243668,206.91,206.85,19.61243668]
[1756458068459,0.06,206.94,206.9,19.61243668]
[1756458068661,0.06,206.94,206.92,33.20803069]
[1756458068831,0.06,206.94,206.93,19.61243668]
[1756458069031,0.06,206.94,206.92,19.61243668]
[1756458069236,0.06,206.94,206.9,13.59559401]
[1756458069445,28.4372634,206.92,206.88,0.7]
[1756458069656,0.06,206.94,206.9,28.4372634]
[1756458069829,0.06,206.94,206.89,0.7]
[1756458070031,0.06,206.94,206.86,14.29559401]
[1756458070258,28.4372634,206.89,206.86,0.7]
[1756458070435,28.4372634,206.89,206.87,0.7]
[1756458070632,28.4372634,206.88,206.74,18.43258733]
[1756458070858,28.4372634,206.81,206.75,0.7]
[1756458071165,28.4372634,206.78,206.72,34.88]
[1756458071333,0.67,206.84,206.72,0.7]
[1756458071535,28.4372634,206.77,206.72,0.7]
[1756458071734,28.4372634,206.77,206.73,0.7]
[1756458071964,0.06,206.82,206.76,28.4372634]
[1756458072173,0.06,206.82,206.77,42.03285741]
[1756458072473,28.4972634,206.82,206.78,0.7]
[1756458072635,0.67,206.95,206.82,13.59559401]
[1756458072837,28.4372634,206.89,206.83,0.7]
[1756458073155,28.4372634,206.88,206.83,0.7]
[1756458073361,28.4372634,206.88,206.84,0.7]
[1756458073932,28.4372634,206.87,206.84,0.7]
[1756458074138,28.4372634,206.85,206.81,13.59559401]
[1756458074339,28.4372634,206.82,206.77,13.59559401]
[1756458074543,28.4372634,206.82,206.78,0.7]
[1756458074751,28.4372634,206.83,206.79,0.7]
[1756458074951,26.0,206.81,206.77,42.03285741]
[1756458075151,28.4372634,206.83,206.77,13.59559401]
[1756458075548,28.4372634,206.83,206.77,47.56914194]
[1756458075763,12.08052584,206.95,206.81,28.4372634]
[1756458075945,26.0,206.92,206.81,28.4372634]
[1756458076133,26.0,206.92,206.81,0.7]
[1756458076350,28.4372634,206.87,206.81,29.1372634]
[1756458076780,26.0,206.88,206.83,28.4372634]
[1756458076954,26.0,206.88,206.84,0.7]
[1756458076955,54.4372634,206.88,206.84,0.7]
[1756458077266,54.4372634,206.88,206.82,29.1372634]
[1756458077559,0.67,206.91,206.8,29.1372634]
[1756458077761,28.4372634,206.85,206.8,0.7]
[1756458077962,28.4372634,206.85,206.8,29.1372634]
[1756458078261,28.4372634,206.86,206.81,0.7]
[1756458079460,4.83326076,206.9,206.8,33.27283259]
[1756458079461,4.83326076,206.9,206.82,0.7]
[1756458079641,28.4372634,206.86,206.82,0.7]
[1756458079837,4.83326076,206.9,206.82,0.7]
[1756458080046,28.4372634,206.86,206.82,0.7]
[1756458080244,0.67,206.91,206.82,0.7]
[1756458080454,28.4372634,206.87,206.82,0.7]
[1756458081180,28.4372634,206.85,206.79,13.59559401]
[1756458081348,28.4372634,206.85,206.8,28.4372634]
[1756458081536,28.4372634,206.85,206.81,0.7]
[1756458081741,5.50302736,206.91,206.81,0.7]
[1756458082040,28.4372634,206.85,206.81,0.7]
[1756458082564,28.4372634,206.87,206.82,0.7]
[1756458082757,28.4372634,206.88,206.83,0.7]
[1756458083055,5.50321695,206.91,206.82,28.4372634]
[1756458083056,28.4372634,206.87,206.82,28.4372634]
[1756458083260,28.4372634,206.86,206.81,28.4372634]
[1756458083474,28.4372634,206.86,206.81,29.1372634]
[1756458084152,28.4372634,206.86,206.81,0.7]
[1756458084562,28.4372634,206.86,206.82,0.7]
[1756458085169,30.83327768,206.9,206.82,0.7]
[1756458085352,28.4372634,206.86,206.82,0.7]
[1756458085537,28.4372634,206.83,206.82,0.7]
[1756458086163,28.4372634,206.83,206.77,0.7]
[1756458086364,28.4372634,206.81,206.78,54.81559401]
[1756458086569,28.4372634,206.81,206.79,0.7]
[1756458086748,28.4372634,206.8,206.77,41.22]
[1756458086954,28.4372634,206.79,206.77,41.22]
[1756458087155,28.4372634,206.8,206.77,41.22]
[1756458087361,28.4372634,206.82,206.78,0.7]
[1756458087565,28.4372634,206.82,206.79,5.53570345]
[1756458087751,28.4372634,206.82,206.74,78.5]
[1756458087752,28.4372634,206.8,206.71,0.7]
[1756458088064,28.4372634,206.72,206.63,12.09836693]
[1756458088250,28.4372634,206.7,206.65,28.4372634]
[1756458088457,28.4372634,206.7,206.66,41.92]
[1756458088652,28.4372634,206.7,206.67,0.7]
[1756458088956,28.4372634,206.7,206.68,0.7]
[1756458089159,28.4372634,206.7,206.67,13.59559401]
[1756458089365,28.4372634,206.7,206.67,18.43405653]
[1756458089558,28.4372634,206.69,206.66,46.05880662]
[1756458089741,0.67,206.75,206.66,46.75880662]
[1756458090064,31.50558994,206.8,206.68,13.59559401]
[1756458090267,28.4372634,206.72,206.68,13.59559401]
[1756458090459,28.4372634,206.7,206.68,14.29559401]
[1756458090760,28.4372634,206.69,206.68,14.29559401]
[1756458091064,28.4372634,206.71,206.68,14.29559401]
[1756458091567,19.6945051,206.72,206.69,5.53816343]
[1756458091783,19.6945051,206.71,206.69,5.53816343]
[1756458092152,19.6945051,206.7,206.69,4.83816343]
[1756458092971,19.6945051,206.71,206.69,5.53816343]
[1756458093164,0.67,206.82,206.7,14.29559401]
[1756458093369,19.6945051,206.74,206.71,4.83769532]
[1756458093566,19.6945051,206.73,206.71,4.83769532]
[1756458093767,19.6945051,206.72,206.71,4.83769532]
[1756458094063,19.6945051,206.72,206.67,0.03]
[1756458094282,19.6945051,206.68,206.67,0.03]
[1756458095048,0.67,206.8,206.67,5.5686133]
[1756458095263,19.6945051,206.73,206.68,14.29559401]
[1756458095466,19.6945051,206.72,206.69,58.85357201]
[1756458095673,19.6945051,206.72,206.7,13.59559401]
[1756458095874,19.6945051,206.73,206.7,13.59559401]
[1756458096084,19.6945051,206.71,206.7,13.59559401]
[1756458096391,19.6945051,206.73,206.7,14.29559401]
[1756458096754,0.67,206.78,206.7,14.29559401]
[1756458096975,19.6945051,206.72,206.7,14.29559401]
[1756458097363,19.6945051,206.72,206.71,5.53769532]
[1756458097567,19.6945051,206.72,206.71,4.83769532]
[1756458099476,0.67,206.77,206.71,4.83769532]
[1756458099682,19.6945051,206.73,206.71,4.83769532]
[1756458099884,19.6945051,206.72,206.71,4.83769532]
[1756458102079,44.89650659,206.72,206.67,0.03]
[1756458102275,19.6945051,206.68,206.67,0.03]
[1756458102672,19.6945051,206.68,206.46,75.09518806]
[1756458102673,4.83863163,206.67,206.56,4.84120836]
[1756458102854,19.6945051,206.58,206.57,34.44]
[1756458103759,26.0,206.55,206.54,0.03]
[1756458103973,65.3890102,206.55,206.44,5.54379024]
[1756458104175,19.6945051,206.46,206.44,4.84379024]
[1756458104367,19.6945051,206.48,206.45,0.7]
[1756458104566,19.6945051,206.47,206.44,4.84379024]
[1756458104777,19.6945051,206.46,206.44,4.84379024]
[1756458105185,0.67,206.52,206.44,4.84379024]
[1756458105360,19.6945051,206.46,206.44,4.84379024]
[1756458106160,45.6945051,206.55,206.44,5.54379024]
[1756458106161,19.6945051,206.47,206.44,5.54379024]
[1756458106386,19.6945051,206.46,206.44,4.84379024]
[1756458106875,19.6945051,206.47,206.44,4.84379024]
[1756458107060,19.6945051,206.5,206.45,0.7]
[1756458107259,26.67,206.55,206.45,0.7]
[1756458107458,19.6945051,206.49,206.45,0.7]
[1756458107867,19.6945051,206.49,206.45,13.59559401]
[1756458108063,0.67,206.53,206.45,14.29559401]
[1756458108386,24.53244381,206.7,206.47,13.59559401]
[1756458108566,19.6945051,206.54,206.49,13.59559401]
[1756458108763,0.67,206.61,206.51,50.2384309]
[1756458108993,19.6945051,206.58,206.53,13.59559401]
[1756458109291,28.53480977,206.58,206.53,54.89559401]
[1756458109488,0.67,206.61,206.53,54.89559401]
[1756458109687,28.53480977,206.61,206.55,13.59559401]
[1756458109982,28.53480977,206.61,206.54,13.59559401]
[1756458110201,28.53480977,206.63,206.56,13.59559401]
[1756458110369,28.53480977,206.57,206.53,41.3]
[1756458110562,0.06,206.54,206.53,55.59559401]
[1756458110759,0.06,206.54,206.53,60.43750559]
[1756458111595,0.06,206.54,206.53,46.14191158]
[1756458111798,0.06,206.54,206.53,46.84191158]
[1756458112182,0.06,206.54,206.52,4.84212461]
[1756458112384,0.06,206.54,206.52,0.7]
[1756458112688,0.06,206.54,206.53,42.83040378]
[1756458112991,0.06,206.54,206.52,13.59559401]
[1756458113185,0.06,206.54,206.51,41.26]
[1756458113387,28.53480977,206.52,206.47,41.28]
[1756458113586,28.53480977,206.51,206.47,41.28]
[1756458113781,0.67,206.52,206.47,41.28]
[1756458113972,28.53480977,206.52,206.47,41.28]
[1756458114290,0.67,206.52,206.47,41.28]
[1756458114592,0.06,206.54,206.48,0.7]
[1756458114788,0.06,206.54,206.48,29.23480977]
[1756458114976,28.53480977,206.52,206.48,4.84307078]
[1756458115180,28.53480977,206.51,206.48,4.84307078]
[1756458115588,0.06,206.54,206.48,4.84307078]
[1756458115775,28.59480977,206.54,206.48,4.84307078]
[1756458115984,28.53480977,206.53,206.48,46.10307078]
[1756458116183,28.59480977,206.54,206.48,87.44559073]
[1756458116484,0.06,206.54,206.49,42.13040378]
[1756458116786,28.59480977,206.54,206.49,14.29559401]
[1756458116976,0.06,206.54,206.51,42.13040378]
[1756458117181,0.06,206.54,206.51,42.83040378]
[1756458117383,0.06,206.54,206.52,41.26]
[1756458117568,0.06,206.54,206.53,42.13040378]
[1756458117767,0.06,206.54,206.53,13.59559401]
[1756458117993,0.06,206.54,206.51,54.85559401]
[1756458118492,0.06,206.54,206.51,55.55559401]
[1756458118789,0.06,206.54,206.5,4.84261501]
[1756458118980,0.06,206.54,206.47,12.10813891]
[1756458118981,28.59480977,206.54,206.51,41.26]
[1756458119179,28.53480977,206.53,206.49,4.84284953]
[1756458119386,29.20480977,206.53,206.47,46.10310708]
[1756458119794,0.06,206.54,206.47,46.10310708]
[1756458119977,0.06,206.54,206.48,13.59559401]
[1756458120180,0.06,206.54,206.5,13.59559401]
[1756458120486,0.06,206.54,206.52,13.59559401]
[1756458120681,0.06,206.54,206.53,42.13040378]
[1756458120880,0.06,206.54,206.53,46.97231536]
[1756458121084,28.59480977,206.54,206.51,46.10218158]
[1756458121285,28.59480977,206.54,206.51,41.26]
[1756458121675,0.06,206.54,206.51,46.80230457]
[1756458121874,0.06,206.54,206.51,46.10230457]
[1756458122073,28.59480977,206.54,206.51,4.84230457]
[1756458122280,0.68,206.53,206.51,4.84230457]
[1756458122480,28.59480977,206.54,206.51,4.84230457]
[1756458122681,0.06,206.54,206.51,4.84230457]
[1756458122883,28.53480977,206.53,206.49,46.10279063]
[1756458123097,28.53480977,206.53,206.49,41.26]
[1756458123681,0.06,206.54,206.49,74.63762594]
[1756458123888,0.06,206.54,206.5,29.23480977]
[1756458124406,0.06,206.54,206.5,28.53480977]
[1756458124579,0.06,206.54,206.49,58.20994]
[1756458124580,1e-08,206.54,206.53,42.13040378]
[1756458124908,1e-08,206.54,206.53,88.23231536]
[1756458125087,1e-08,206.54,206.53,88.93231536]
[1756458125400,1e-08,206.54,206.49,0.7]
[1756458125578,28.53480977,206.53,206.47,4.84331864]
[1756458125778,28.53480977,206.52,206.47,4.84331864]
[1756458125990,0.68000001,206.54,206.47,45.48642501]
[1756458125991,29.21480978,206.54,206.47,45.48642501]
[1756458126191,1e-08,206.54,206.49,28.53480977]
[1756458126597,1e-08,206.54,206.5,70.49480977]
[1756458126902,1e-08,206.54,206.51,28.53480977]
[1756458127095,1e-08,206.54,206.52,33.3769558]
[1756458127277,1e-08,206.54,206.53,54.85559401]
[1756458127480,1e-08,206.57,206.54,13.59559401]
[1756458127681,1e-08,206.57,206.56,28.53480977]
[1756458127885,16.8,206.77,206.56,83.43040378]
[1756458128093,28.53480977,206.66,206.6,28.53480977]
[1756458128287,28.53480977,206.62,206.56,0.7]
[1756458128488,28.53480977,206.59,206.52,16.94751112]
[1756458128704,26.0,206.69,206.53,41.34]
[1756458128705,0.68,206.61,206.53,41.34]
[1756458128918,0.68,206.61,206.53,70.57480977]
[1756458129201,0.68,206.61,206.54,4.84167715]
[1756458129499,19.71906979,206.55,206.53,41.34]
[1756458129902,0.06,206.57,206.5,41.32]
[1756458130094,0.06,206.57,206.5,41.34]
[1756458130095,19.71906979,206.51,206.5,41.34]
[1756458130306,20.39906979,206.51,206.46,4.84355323]
[1756458130490,19.71906979,206.51,206.46,46.18355323]
[1756458131091,19.71906979,206.51,206.46,46.88355323]
[1756458131289,19.71906979,206.51,206.46,46.18355323]
[1756458131590,19.71906979,206.49,206.46,46.18355323]
[1756458131809,0.68,206.54,206.46,46.18355323]
[1756458131998,19.71906979,206.5,206.46,46.18355323]
[1756458132510,19.71906979,206.49,206.46,46.18355323]